bitfinex/quotes_SOLUSD_20250706
["timestamp","ask_amount","ask_price","bid_price","bid_amount"]
[1751820371150,13.15336161,152.39,152.35,35.14903405]
[1751820371468,5.78769059,152.38,152.35,3.36134346]
[1751820371671,5.78769059,152.38,152.34,12.3515439]
[1751820373265,13.15336161,152.39,152.34,12.3515439]
[1751820374372,19.71556364,152.39,152.34,12.3515439]
[1751820374668,5.78769059,152.38,152.34,12.3515439]
[1751820374866,13.98499262,152.39,152.34,12.3515439]
[1751820375449,8.19730203,152.39,152.34,12.3515439]
[1751820375648,8.19730203,152.39,152.34,6.56385331]
[1751820375861,13.98499262,152.39,152.34,12.3515439]
[1751820376066,7.42279059,152.39,152.34,12.3515439]
[1751820378164,1.6351,152.39,152.35,5.78769059]
[1751820378366,7.36475135,152.39,152.38,5.78769059]
[1751820378567,7.36475135,152.41,152.38,5.78769059]
[1751820378771,7.36475135,152.41,152.39,5.78769059]
[1751820379861,8.0047,152.43,152.4,5.78769059]
[1751820380068,7.36341932,152.42,152.36,44.64964886]
[1751820380272,7.36341932,152.42,152.4,5.78769059]
[1751820381161,8.0047,152.43,152.4,5.78769059]
[1751820382154,8.0047,152.43,152.4,12.34909457]
[1751820383062,8.0047,152.43,152.4,6.56140398]
[1751820383262,8.0047,152.43,152.4,12.34909457]
[1751820383873,8.0047,152.43,152.4,5.78769059]
[1751820384070,7.35893101,152.42,152.4,5.78769059]
[1751820384563,7.35893101,152.42,152.4,12.34936901]
[1751820384763,8.0647,152.43,152.4,12.34936901]
[1751820385159,5.78769059,152.42,152.37,5.78769059]
[1751820385469,5.78769059,152.4,152.36,5.78769059]
[1751820385680,5.78769059,152.39,152.35,5.78769059]
[1751820385885,14.62509629,152.43,152.31,0.03]
[1751820385886,5.78769059,152.36,152.31,0.03]
[1751820386184,5.78769059,152.34,152.31,0.03]
[1751820388085,5.78769059,152.33,152.31,0.03]
[1751820388374,5.78769059,152.32,152.31,0.03]
[1751820388564,5.78769059,152.33,152.31,0.03]
[1751820388966,5.78769059,152.32,152.31,0.03]
[1751820390372,12.35281664,152.32,152.31,0.03]
[1751820390569,19.78570723,152.32,152.31,0.03]
[1751820390780,33.61087273,152.32,152.31,0.03]
[1751820390960,27.82318214,152.32,152.31,0.03]
[1751820391157,33.61087273,152.32,152.31,0.03]
[1751820391364,33.61087273,152.32,152.22,12.35700942]
[1751820391556,5.78769059,152.26,152.22,12.35700942]
[1751820392994,5.78769059,152.26,152.22,6.56931883]
[1751820393287,5.78769059,152.26,152.22,12.35700942]
[1751820393979,5.78769059,152.27,152.22,12.35700942]
[1751820395779,5.78769059,152.26,152.22,12.35700942]
[1751820396505,5.78769059,152.25,152.21,38.35744533]
[1751820396788,5.78769059,152.25,152.19,5.78769059]
[1751820396789,5.78769059,152.23,152.19,5.78769059]
[1751820396986,5.78769059,152.22,152.18,6.57083108]
[1751820397366,5.78769059,152.22,152.17,38.35915839]
[1751820397567,5.78769059,152.22,152.17,12.35915839]
[1751820398767,5.78769059,152.22,152.18,5.78769059]
[1751820400579,1.5194,152.25,152.21,5.78769059]
[1751820400784,1.5194,152.25,152.22,5.78769059]
[1751820401585,1.5194,152.25,152.22,12.35694888]
[1751820403289,5.78769059,152.26,152.22,12.35694888]
[1751820403679,5.78769059,152.27,152.22,12.35694888]
[1751820403879,146.0,152.28,152.24,5.78769059]
[1751820404084,146.0,152.28,152.22,6.56925829]
[1751820404283,151.78769059,152.28,152.24,5.78769059]
[1751820405395,146.0,152.28,152.24,12.35587092]
[1751820406685,151.78769059,152.28,152.24,12.35587092]
[1751820406888,146.0,152.28,152.24,12.35587092]
[1751820407281,146.0,152.28,152.24,6.56818033]
[1751820407477,146.0,152.28,152.25,5.78769059]
[1751820408094,146.0,152.28,152.25,12.35572344]
[1751820408595,146.0,152.28,152.25,6.56803285]
[1751820408779,146.0,152.28,152.24,12.35613394]
[1751820408981,151.78769059,152.28,152.24,12.35613394]
[1751820411095,5.78769059,152.27,152.23,6.56894447]
[1751820411536,5.78769059,152.26,152.23,6.56894447]
[1751820412010,4.0550215,152.26,152.23,6.56894447]
[1751820412186,4.0550215,152.26,152.22,0.03]
[1751820413602,5.78769059,152.25,152.22,0.03]
[1751820413779,5.78769059,152.24,152.22,0.03]
[1751820413979,5.78769059,152.25,152.22,0.03]
[1751820417883,5.78769059,152.24,152.22,0.03]
[1751820419693,5.78769059,152.23,152.22,0.03]
[1751820420713,5.78769059,152.24,152.22,0.03]
[1751820422501,5.78769059,152.23,152.22,0.03]
[1751820423510,14.04909059,152.23,152.22,0.03]
[1751820424603,20.61809801,152.23,152.22,0.03]
[1751820424907,39.26774687,152.23,152.22,0.03]
[1751820425100,171.97,152.22,152.16,0.1]
[1751820425412,5.78769059,152.18,152.16,0.1]
[1751820426287,5.78769059,152.17,152.16,0.1]
[1751820427312,5.78769059,152.18,152.16,0.1]
[1751820430418,5.78769059,152.17,152.16,0.1]
[1751820431217,12.35928814,152.17,152.16,0.1]
[1751820432119,145.97,152.2,152.16,0.1]
[1751820432424,5.78769059,152.19,152.16,0.1]
[1751820432819,5.78769059,152.18,152.16,0.1]
[1751820433703,5.78769059,152.17,152.16,0.1]
[1751820434534,5.78769059,152.18,152.16,0.1]
[1751820435222,5.78769059,152.19,152.16,0.1]
[1751820435931,152.5404873,152.2,152.16,0.1]
[1751820436098,5.78769059,152.19,152.16,0.1]
[1751820436616,5.78769059,152.18,152.16,0.1]
[1751820438433,5.78769059,152.17,152.16,0.1]
[1751820440716,12.35928814,152.17,152.16,0.1]
[1751820441436,12.35928814,152.17,152.09,5.78769059]
[1751820441437,5.78769059,152.11,152.07,31.78769059]
[1751820441611,5.78769059,152.12,152.08,5.78769059]
[1751820442500,5.78769059,152.12,152.07,12.36346006]
[1751820444022,5.78769059,152.12,152.08,5.78769059]
[1751820444403,6.57300388,152.14,152.08,5.78769059]
[1751820444603,5.78769059,152.12,152.08,5.78769059]
[1751820445102,146.0,152.15,152.09,12.36274483]
[1751820445303,146.0,152.14,152.1,5.78769059]
[1751820445710,146.0,152.14,152.11,5.78769059]
[1751820445919,146.0,152.14,152.13,5.78769059]
[1751820446120,146.0,152.19,152.13,5.78769059]
[1751820446311,146.0,152.19,152.16,5.78769059]
[1751820447730,146.0,152.19,152.15,12.35993605]
[1751820448215,146.0,152.19,152.15,6.57224546]
[1751820448634,146.0,152.19,152.15,12.35993605]
[1751820450720,151.78769059,152.19,152.15,12.35993605]
[1751820450932,151.78769059,152.19,152.15,12.38993605]
[1751820451840,146.0,152.19,152.15,12.38993605]
[1751820452036,146.0,152.19,152.16,5.78769059]
[1751820453543,146.0,152.19,152.16,12.35959731]
[1751820453846,146.0,152.19,152.16,6.57190672]
[1751820455025,146.0,152.19,152.15,12.39003795]
[1751820455542,151.78769059,152.19,152.15,12.39003795]
[1751820455744,5.78769059,152.18,152.15,0.03]
[1751820456043,5.78769059,152.17,152.15,0.03]
[1751820457547,5.78769059,152.16,152.15,0.03]
[1751820458849,5.78769059,152.17,152.15,0.03]
[1751820459064,146.0,152.18,152.15,0.03]
[1751820459226,146.0,152.18,152.15,5.81769059]
[1751820459425,151.78769059,152.18,152.15,0.03]
[1751820460351,5.78769059,152.17,152.15,0.03]
[1751820460559,5.78769059,152.16,152.15,0.03]
[1751820465766,146.0,152.18,152.15,0.03]
[1751820466068,151.78769059,152.18,152.15,0.03]
[1751820467241,5.78769059,152.17,152.15,0.03]
[1751820468045,152.57149405,152.18,152.15,0.03]
[1751820468262,5.78769059,152.16,152.15,0.03]
[1751820468458,7.37538713,152.17,152.15,0.03]
[1751820468657,146.0,152.18,152.15,18.67964886]
[1751820468953,0.06,152.22,152.17,5.78769059]
[1751820469252,0.06,152.22,152.15,18.67964886]
[1751820469253,0.06,152.22,152.19,5.78769059]
[1751820469482,0.06,152.22,152.2,5.78769059]
[1751820470273,0.06,152.22,152.2,12.35782188]
[1751820472566,0.06,152.22,152.2,5.78769059]
[1751820474885,0.06,152.22,152.2,12.35780313]
[1751820476057,0.06,152.22,152.21,5.78769059]
[1751820476572,0.06,152.22,152.2,6.57011254]
[1751820476784,0.06,152.22,152.21,5.78769059]
[1751820476948,0.06,152.22,152.2,12.35780313]
[1751820478178,0.06,152.22,152.2,6.57011254]
[1751820478383,0.06,152.22,152.2,12.35780313]
[1751820479450,0.06,152.22,152.21,5.78769059]
[1751820480276,0.06,152.22,152.21,24.43733945]
[1751820480448,0.06,152.22,152.21,50.43733945]
[1751820481468,0.06,152.22,152.21,51.21951943]
[1751820481678,0.06,152.22,152.21,57.00721002]
[1751820482350,146.0,152.28,152.22,18.64964886]
[1751820482677,0.06,152.31,152.27,5.78769059]
[1751820482904,0.06,152.31,152.28,5.78769059]
[1751820483053,0.06,152.31,152.27,5.78769059]
[1751820483582,0.06,152.31,152.27,12.35455212]
[1751820483886,0.06,152.31,152.28,5.78769059]
[1751820484879,0.06,152.31,152.25,18.64964886]
[1751820484880,5.78769059,152.3,152.26,12.35525858]
[1751820485083,5.78769059,152.29,152.26,6.56756799]
[1751820486632,151.78769059,152.3,152.26,12.35525858]
[1751820487853,5.78769059,152.29,152.25,12.35577257]
[1751820488057,146.0,152.3,152.25,12.35577257]
[1751820488268,5.78769059,152.29,152.25,12.35577257]
[1751820489379,151.78769059,152.3,152.25,12.35577257]
[1751820490373,151.78769059,152.3,152.26,5.78769059]
[1751820490800,151.78769059,152.3,152.25,12.35577257]
[1751820492303,151.78769059,152.3,152.26,5.78769059]
[1751820492607,146.0,152.3,152.26,5.78769059]
[1751820493402,146.0,152.3,152.27,5.78769059]
[1751820493771,146.0,152.3,152.28,5.78769059]
[1751820494379,146.0,152.3,152.27,5.78769059]
[1751820494587,146.0,152.3,152.26,5.78769059]
[1751820494981,151.78769059,152.3,152.26,5.78769059]
[1751820495681,151.78769059,152.3,152.25,12.35577257]
[1751820496391,5.78769059,152.29,152.25,12.35577257]
[1751820498313,146.0,152.3,152.26,5.78769059]
[1751820498608,146.0,152.3,152.28,5.78769059]
[1751820498777,146.0,152.3,152.27,5.78769059]
[1751820500004,146.0,152.3,152.28,12.35454112]
[1751820500182,146.0,152.3,152.26,6.56771312]
[1751820500388,146.0,152.3,152.27,5.78769059]
[1751820500589,146.0,152.3,152.28,5.78769059]
[1751820501192,146.0,152.3,152.26,6.56771312]
[1751820501384,146.0,152.3,152.28,12.35448668]
[1751820501582,146.0,152.3,152.28,6.56679609]
[1751820502208,146.0,152.3,152.28,12.35448668]
[1751820504712,146.0,152.3,152.29,5.78769059]
[1751820505508,146.0,152.3,152.29,12.35410992]
[1751820507617,0.06,152.31,152.29,12.35410992]
[1751820507917,0.06,152.31,152.3,5.78769059]
[1751820508318,0.06,152.31,152.29,12.35410992]
[1751820509518,0.06,152.31,152.3,5.78769059]
[1751820509692,0.06,152.31,152.3,12.35367877]
[1751820512317,0.06,152.31,152.3,31.00332763]
[1751820514141,0.06,152.31,152.3,12.35367877]
[1751820517932,0.06,152.31,152.3,6.56598818]
[1751820518310,0.06,152.31,152.28,18.64964886]
[1751820518501,5.78769059,152.3,152.26,6.56758306]
[1751820518704,0.06,152.31,152.24,5.78769059]
[1751820518705,5.78769059,152.29,152.24,5.78769059]
[1751820519127,5.78769059,152.29,152.25,6.56814449]
[1751820519337,5.78769059,152.29,152.24,12.35610701]
[1751820519518,5.78769059,152.26,152.22,0.03]
[1751820519720,5.78769059,152.26,152.22,6.59930324]
[1751820519915,5.78769059,152.26,152.22,38.38699383]
[1751820520137,5.78769059,152.26,152.22,12.38699383]
[1751820520430,5.78769059,152.26,152.22,38.38699383]
[1751820520845,5.78769059,152.27,152.22,38.38699383]
[1751820521132,5.78769059,152.27,152.22,12.38699383]
[1751820521319,5.78769059,152.26,152.22,12.38699383]
[1751820521520,5.78769059,152.26,152.22,38.38699383]
[1751820521913,5.78769059,152.26,152.22,32.59930324]
[1751820523516,5.78769059,152.26,152.22,38.38699383]
[1751820523948,6.1332,152.28,152.24,5.78769059]
[1751820524116,151.78769059,152.3,152.25,5.78769059]
[1751820524433,151.78769059,152.3,152.26,5.78769059]
[1751820525115,151.78769059,152.3,152.24,6.56857593]
[1751820525317,146.0,152.3,152.28,5.78769059]
[1751820525528,0.06,152.31,152.29,5.78769059]
[1751820525712,0.06,152.31,152.3,5.78769059]
[1751820526229,0.06,152.31,152.3,24.43733945]
[1751820528138,0.06,152.31,152.3,31.00332763]
[1751820539175,7.9544,152.36,152.3,31.00332763]
[1751820539176,7.9544,152.36,152.33,26.0]
[1751820539329,7.9544,152.36,152.34,12.35163472]
[1751820542349,7.9544,152.36,152.33,38.35224845]
[1751820544237,13.74209059,152.36,152.33,32.56455786]
[1751820544434,5.78769059,152.34,152.3,6.56598818]
[1751820544638,5.78769059,152.33,152.31,26.0]
[1751820544934,7.3568186,152.35,152.26,5.78769059]
[1751820544935,151.78769059,152.32,152.26,5.78769059]
[1751820545243,5.78769059,152.29,152.25,5.78769059]
[1751820545449,5.78769059,152.31,152.26,5.78769059]
[1751820545650,5.78769059,152.31,152.25,26.0]
[1751820545651,5.78769059,152.31,152.27,5.78769059]
[1751820545847,5.78769059,152.31,152.26,5.78769059]
[1751820547140,14.01079059,152.3,152.25,38.35583508]
[1751820547557,14.01079059,152.3,152.24,16.42054047]
[1751820547558,5.78769059,152.28,152.24,12.35612024]
[1751820549269,5.78769059,152.26,152.22,0.03]
[1751820549441,5.78769059,152.26,152.22,12.38699936]
[1751820550347,6.56641933,152.29,152.22,12.38699936]
[1751820550661,5.78769059,152.26,152.22,12.38699936]
[1751820552366,8.2231,152.3,152.23,5.78769059]
[1751820552542,5.78769059,152.28,152.23,6.56874491]
[1751820552745,5.78769059,152.27,152.23,12.3564355]
[1751820553265,5.78769059,152.29,152.25,5.78769059]
[1751820553764,5.78769059,152.27,152.23,12.3564355]
[1751820553958,8.2231,152.3,152.26,5.78769059]
[1751820554175,8.2231,152.3,152.27,5.78769059]
[1751820554657,8.2231,152.3,152.27,12.35479264]
[1751820560359,14.01079059,152.3,152.27,6.56710205]
[1751820560672,8.2231,152.3,152.27,12.35479264]
[1751820561947,146.0,152.32,152.29,5.78769059]
[1751820564179,146.0,152.32,152.31,5.78769059]
[1751820564468,146.0,152.32,152.3,5.78769059]
[1751820564850,146.0,152.32,152.29,5.78769059]
[1751820565468,146.0,152.32,152.31,5.78769059]
[1751820565882,146.0,152.32,152.3,12.35348638]
[1751820568368,146.0,152.32,152.28,6.56685053]
[1751820568565,146.0,152.32,152.3,5.78769059]
[1751820570264,146.0,152.32,152.28,6.56685053]
[1751820570467,146.0,152.32,152.29,5.78769059]
[1751820574653,146.0,152.32,152.29,6.56622442]
[1751820574851,146.0,152.32,152.29,12.35391501]
[1751820578681,146.0,152.32,152.3,5.78769059]
[1751820578984,146.0,152.32,152.29,12.35391501]
[1751820579178,5.78769059,152.3,152.27,0.03]
[1751820579371,5.78769059,152.28,152.27,0.03]
[1751820579570,13.88209059,152.28,152.27,0.03]
[1751820582086,20.44894112,152.28,152.27,0.03]
[1751820583499,27.81027788,152.28,152.27,0.03]
[1751820591999,15.45573676,152.28,152.27,0.03]
[1751820592211,6.2331,152.32,152.27,5.81769059]
[1751820592373,13.59000723,152.32,152.28,5.78769059]
[1751820592574,7.41690723,152.32,152.29,5.78769059]
[1751820592894,7.41690723,152.32,152.27,26.03]
[1751820592895,7.41690723,152.32,152.31,5.78769059]
[1751820593093,0.06,152.32,152.3,5.78769059]
[1751820593476,0.06,152.32,152.31,5.78769059]
[1751820593906,0.06,152.32,152.31,12.35324767]
[1751820594100,0.06,152.32,152.31,57.00289653]
[1751820595186,0.06,152.37,152.32,18.64964886]
[1751820595386,0.06,152.37,152.36,5.78769059]
[1751820595905,0.06,152.37,152.36,12.35109305]
[1751820596684,0.06,152.37,152.36,5.78769059]
[1751820597879,0.06,152.37,152.36,12.35109305]
[1751820598083,0.06,152.37,152.36,31.00074191]
[1751820600586,0.06,152.37,152.36,12.35109305]
[1751820603809,0.06,152.37,152.36,31.00074191]
[1751820604406,0.2,152.38,152.36,31.00074191]
[1751820604712,0.2,152.38,152.37,26.0]
[1751820605617,0.2,152.38,152.37,31.78769059]
[1751820606406,0.2,152.38,152.37,38.3506623]
[1751820609298,0.2,152.38,152.37,57.00031116]
[1751820612223,0.06,152.43,152.41,26.0]
[1751820612598,0.06,152.43,152.41,31.78769059]
[1751820612798,0.06,152.43,152.42,5.78769059]
[1751820613309,0.06,152.43,152.42,12.34850938]
[1751820614105,0.06,152.43,152.42,6.56081879]
[1751820614820,5.78769059,152.46,152.42,6.56081879]
[1751820618720,6.55885328,152.47,152.42,6.56081879]
[1751820618928,5.78769059,152.46,152.42,6.56081879]
[1751820619430,6.55885328,152.47,152.42,6.56081879]
[1751820619623,5.78769059,152.46,152.42,6.56081879]
[1751820620132,20.14134651,152.48,152.42,12.34850938]
[1751820620326,13.583,152.48,152.43,5.78769059]
[1751820620527,1.5573,152.49,152.42,6.56081879]
[1751820620734,7.34499059,152.49,152.44,5.78769059]
[1751820621024,7.34499059,152.49,152.43,5.78769059]
[1751820621025,5.78769059,152.48,152.43,5.78769059]
[1751820621232,1.5573,152.49,152.44,5.78769059]
[1751820621416,5.78769059,152.47,152.42,6.56081879]
[1751820621617,5.78769059,152.48,152.44,5.78769059]
[1751820622633,5.78769059,152.47,152.43,12.34770906]
[1751820624211,5.78769059,152.48,152.43,12.34770906]
[1751820624410,8.11514841,152.49,152.43,12.34770906]
[1751820624636,1.5573,152.49,152.45,5.78769059]
[1751820624812,7.34499059,152.49,152.45,5.78769059]
[1751820625136,7.34499059,152.49,152.44,5.78769059]
[1751820625634,5.78769059,152.48,152.44,5.78769059]
[1751820626643,7.34499059,152.49,152.45,12.3472183]
[1751820626934,1.5573,152.49,152.45,12.3472183]
[1751820627534,1.5573,152.49,152.46,5.78769059]
[1751820627735,7.34499059,152.49,152.45,12.3472183]
[1751820627929,7.34499059,152.49,152.45,6.55952771]
[1751820628235,5.78769059,152.48,152.43,6.56038837]
[1751820628433,5.78769059,152.48,152.44,5.78769059]
[1751820628730,1.5573,152.49,152.44,12.34747906]
[1751820628935,5.78769059,152.48,152.44,12.34747906]
[1751820629607,5.78769059,152.48,152.44,6.55978847]
[1751820629810,7.34499059,152.49,152.45,5.78769059]
[1751820631523,5.78769059,152.5,152.46,5.78769059]
[1751820631930,6.0514,152.52,152.49,5.78769059]
[1751820632135,7.50250378,152.56,152.46,18.64964886]
[1751820632136,13.39084019,152.56,152.51,5.78769059]
[1751820632336,5.78769059,152.54,152.49,5.78769059]
[1751820632540,5.78769059,152.54,152.5,5.78769059]
[1751820632709,13.39084019,152.56,152.51,5.78769059]
[1751820633039,6.83590378,152.56,152.52,5.78769059]
[1751820633234,5.78769059,152.55,152.51,5.78769059]
[1751820633431,5.78769059,152.55,152.51,6.55686331]
[1751820633639,12.3429867,152.55,152.49,6.55780706]
[1751820633944,12.3429867,152.55,152.51,5.78769059]
[1751820634125,5.78769059,152.55,152.51,5.78769059]
[1751820635734,12.62359437,152.56,152.52,5.78769059]
[1751820636043,6.83590378,152.56,152.53,5.78769059]
[1751820636419,0.38250378,152.56,152.52,5.78769059]
[1751820636615,0.38250378,152.56,152.55,5.78769059]
[1751820637331,0.38250378,152.56,152.55,30.99256724]
[1751820639258,7.3013467,152.63,152.58,26.0]
[1751820639445,5.78769059,152.61,152.57,5.78769059]
[1751820639622,5.78769059,152.61,152.58,26.0]
[1751820639820,13.08903729,152.63,152.59,5.78769059]
[1751820640019,5.78769059,152.63,152.59,5.78769059]
[1751820640951,6.5219,152.64,152.59,5.78769059]
[1751820641119,20.36577593,152.64,152.58,26.0]
[1751820641321,5.98769059,152.64,152.59,5.78769059]
[1751820641537,5.98769059,152.64,152.6,5.78769059]
[1751820642049,0.2,152.64,152.6,5.78769059]
[1751820642355,0.2,152.64,152.61,5.78769059]
[1751820642650,0.2,152.64,152.6,5.78769059]
[1751820642851,0.03,152.63,152.6,5.78769059]
[1751820643225,0.03,152.63,152.59,6.5535094]
[1751820643432,0.03,152.63,152.61,5.78769059]
[1751820643636,0.03,152.63,152.61,6.55230393]
[1751820644536,5.78769059,152.62,152.55,25.20487665]
[1751820644746,0.03,152.63,152.55,30.99256724]
[1751820644956,5.78769059,152.6,152.56,5.78769059]
[1751820645423,5.78769059,152.57,152.52,6.55646729]
[1751820645623,5.78769059,152.54,152.49,6.55780706]
[1751820645825,5.78769059,152.54,152.5,5.78769059]
[1751820646020,5.78769059,152.53,152.49,6.55780706]
[1751820646226,5.78769059,152.52,152.49,6.55780706]
[1751820646426,5.78769059,152.51,152.47,6.55829997]
[1751820646832,5.78769059,152.51,152.47,12.34599056]
[1751820647447,5.78769059,152.5,152.47,6.55829997]
[1751820647624,5.78769059,152.5,152.47,32.55829997]
[1751820650257,6.3219,152.54,152.49,5.78769059]
[1751820650457,6.3219,152.54,152.5,5.78769059]
[1751820650632,12.10959059,152.54,152.5,5.78769059]
[1751820650832,5.78769059,152.53,152.49,5.78769059]
[1751820651452,5.78769059,152.53,152.48,26.0]
[1751820651647,5.78769059,152.53,152.49,5.78769059]
[1751820652259,12.10959059,152.54,152.51,6.55694708]
[1751820652463,12.10959059,152.54,152.5,5.78769059]
[1751820652939,6.3144,152.59,152.53,5.78769059]
[1751820653250,5.78769059,152.57,152.52,5.78769059]
[1751820653460,8.1713726,152.58,152.5,6.55727136]
[1751820653461,5.78769059,152.55,152.5,6.55727136]
[1751820653660,5.78769059,152.55,152.51,5.78769059]
[1751820654461,5.78769059,152.52,152.46,5.78769059]
[1751820654641,5.78769059,152.56,152.46,5.78769059]
[1751820654642,5.78769059,152.5,152.47,26.0]
[1751820654844,5.78769059,152.49,152.45,6.55952771]
[1751820655050,1.6342,152.51,152.45,6.55952771]
[1751820655248,1.6342,152.51,152.45,12.3472183]
[1751820655450,5.78769059,152.5,152.46,5.78769059]
[1751820655957,7.42189059,152.51,152.46,5.78769059]
[1751820656550,7.42189059,152.51,152.47,6.55866727]
[1751820656970,10.31305111,152.51,152.47,6.55866727]
[1751820657749,10.31305111,152.51,152.46,6.55909746]
[1751820657961,10.31305111,152.51,152.46,15.23794857]
[1751820658559,1.6665,152.56,152.49,26.0]
[1751820658863,8.67885111,152.55,152.5,8.67885111]
[1751820659948,1.6665,152.56,152.52,8.67885111]
[1751820660447,8.67885111,152.53,152.49,8.67885111]
[1751820660639,8.67885111,152.52,152.48,34.67885111]
[1751820661262,8.67885111,152.52,152.45,35.04770365]
[1751820661263,8.67885111,152.51,152.47,15.23743222]
[1751820661537,8.67885111,152.52,152.47,15.23743222]
[1751820662149,8.67885111,152.51,152.47,15.23743222]
[1751820665147,8.67885111,152.51,152.47,15.29743222]
[1751820666462,6.55522779,152.55,152.47,15.29743222]
[1751820666661,8.67885111,152.52,152.47,15.29743222]
[1751820667448,8.67885111,152.51,152.47,0.06]
[1751820667661,8.67885111,152.49,152.47,0.06]
[1751820669142,8.67885111,152.5,152.47,0.06]
[1751820675085,0.03,152.56,152.49,26.0]
[1751820675289,0.03,152.56,152.48,6.4384]
[1751820675468,8.67885111,152.54,152.5,34.67885111]
[1751820675668,8.67885111,152.51,152.47,0.06]
[1751820675999,8.67885111,152.51,152.47,26.06]
[1751820676196,10.29155111,152.55,152.47,34.73885111]
[1751820676493,8.67885111,152.51,152.47,34.73885111]
[1751820676791,1.6127,152.55,152.47,34.73885111]
[1751820676792,8.67885111,152.52,152.47,34.73885111]
[1751820676965,8.67885111,152.52,152.48,6.55823714]
[1751820677392,8.67885111,152.53,152.48,15.23708825]
[1751820678299,1.6127,152.55,152.49,8.67885111]
[1751820678475,10.29155111,152.55,152.5,8.67885111]
[1751820678681,17.61884379,152.55,152.5,8.67885111]
[1751820678871,7.39555303,152.55,152.5,5.78285303]
[1751820679600,7.39555303,152.55,152.51,6.55694708]
[1751820680273,5.78285303,152.54,152.51,6.55694708]
[1751820682095,5.78285303,152.54,152.5,5.78285303]
[1751820682290,151.78285303,152.54,152.5,5.78285303]
[1751820683888,151.78285303,152.54,152.49,5.78285303]
[1751820683889,5.78285303,152.53,152.49,5.78285303]
[1751820684305,5.78285303,152.53,152.5,6.55737704]
[1751820684984,151.78285303,152.52,152.47,0.06]
[1751820685186,5.78285303,152.5,152.47,0.06]
[1751820685383,5.78285303,152.51,152.47,0.06]
[1751820685602,151.78285303,152.52,152.47,38.40144004]
[1751820685810,146.0,152.52,152.48,5.78285303]
[1751820686307,146.0,152.52,152.48,12.34102812]
[1751820686516,151.78285303,152.52,152.48,12.34102812]
[1751820687190,5.78285303,152.49,152.47,0.06]
[1751820687397,5.78285303,152.48,152.47,0.06]
[1751820689391,13.13342784,152.48,152.47,0.06]
[1751820691218,5.78285303,152.48,152.47,0.06]
[1751820691512,13.13342784,152.48,152.47,0.06]
[1751820691818,5.78285303,152.48,152.47,0.06]
[1751820692118,13.13342784,152.48,152.47,0.06]
[1751820692489,5.78285303,152.48,152.47,0.06]
[1751820692686,13.13342784,152.48,152.47,0.06]
[1751820692907,5.78285303,152.48,152.47,0.06]
[1751820694031,151.78285303,152.48,152.47,0.06]
[1751820700429,146.0,152.48,152.47,5.84285303]
[1751820702043,146.0,152.48,152.47,12.4015203]
[1751820703427,1.6127,152.55,152.47,28.79818849]
[1751820703428,146.0,152.53,152.47,28.79818849]
[1751820703728,0.03,152.56,152.52,5.78285303]
[1751820703942,7.35606711,152.55,152.52,5.78285303]
[1751820704105,7.35606711,152.55,152.53,5.78285303]
[1751820704828,7.38606711,152.56,152.53,5.78285303]
[1751820705635,7.38606711,152.56,152.55,5.78285303]
[1751820705636,0.03,152.56,152.55,5.78285303]
[1751820706337,0.03,152.56,152.55,12.33808082]
[1751820709432,0.03,152.56,152.55,30.98772968]
[1751820710623,0.03,152.63,152.58,26.0]
[1751820710830,5.81285303,152.63,152.59,5.78285303]
[1751820711639,0.03,152.63,152.6,6.55307994]
[1751820712234,0.03,152.63,152.6,12.33593297]
[1751820713229,0.03,152.63,152.61,5.78285303]
[1751820713431,0.03,152.63,152.62,5.78285303]
[1751820713640,0.03,152.63,152.62,6.5522212]
[1751820714444,0.03,152.63,152.62,12.33507423]
[1751820715240,0.03,152.63,152.6,6.55307994]
[1751820715418,0.03,152.63,152.61,5.78285303]
[1751820715618,0.03,152.63,152.62,12.33507423]
[1751820716043,0.03,152.63,152.62,6.5522212]
[1751820716246,0.03,152.63,152.62,30.98472309]
[1751820716547,0.03,152.63,152.62,12.33507423]
[1751820716741,0.03,152.63,152.61,12.33538835]
[1751820716929,0.03,152.63,152.61,6.55253532]
[1751820717131,0.03,152.63,152.61,12.33538835]
[1751820717318,0.03,152.63,152.61,6.55253532]
[1751820717517,5.78285303,152.62,152.56,5.78285303]
[1751820717729,5.78285303,152.6,152.56,12.33765114]